bitfinex/quotes_ETHUSD_20250622
["timestamp","ask_amount","ask_price","bid_price","bid_amount"]
[1750591883335,0.84756038,2278.5,2278.0,2.023]
[1750591883552,0.84756038,2278.5,2278.0,12.023]
[1750591884564,0.84756038,2278.5,2278.0,12.46216666]
[1750591884971,0.84756038,2278.5,2278.0,2.46216666]
[1750591885172,0.84756038,2278.5,2278.0,0.43916666]
[1750591885380,0.84756038,2278.5,2277.8,2.023]
[1750591885691,0.84756038,2278.5,2277.5,0.48838836]
[1750591885692,0.84756038,2278.5,2277.5,9.466]
[1750591885862,0.84756038,2278.5,2277.6,10.0]
[1750591886197,0.84756038,2278.5,2277.5,9.466]
[1750591886395,0.7553,2278.3,2277.5,9.466]
[1750591886586,0.55,2278.4,2277.6,10.0]
[1750591886587,0.04386038,2278.2,2277.6,10.0]
[1750591886784,0.7553,2278.1,2277.6,10.44701754]
[1750591886995,0.04386038,2278.0,2277.6,10.44701754]
[1750591887566,0.7553,2278.1,2277.6,10.44701754]
[1750591887567,0.7553,2278.1,2277.7,0.04390265]
[1750591887783,0.7553,2278.1,2277.7,0.60161337]
[1750591888802,0.7553,2278.1,2277.7,0.55771072]
[1750591889174,0.7553,2278.1,2277.7,8.00071072]
[1750591889774,0.7553,2278.1,2277.7,0.55771072]
[1750591891810,0.7553,2278.1,2277.7,0.60161287]
[1750591892175,0.7553,2278.1,2277.7,0.55771072]
[1750591893531,0.7553,2278.1,2277.8,0.04389767]
[1750591893746,0.7553,2278.4,2277.9,0.55771072]
[1750591894044,0.7553,2278.4,2278.0,0.04389304]
[1750591894530,0.7553,2278.4,2277.9,7.99971072]
[1750591894734,0.7553,2278.4,2277.9,10.02371072]
[1750591895303,0.7553,2278.7,2278.0,10.04389303]
[1750591895619,0.7553,2278.7,2278.1,0.55771072]
[1750591895822,0.7553,2278.7,2278.2,0.0438882]
[1750591896057,0.7553,2278.7,2278.3,7.441]
[1750591896338,0.84096038,2278.6,2277.8,7.441]
[1750591896544,0.84096038,2278.6,2277.9,10.0]
[1750591897431,0.84096038,2278.6,2277.8,7.441]
[1750591897827,0.84096038,2278.6,2277.8,7.48489689]
[1750591898052,0.84096038,2278.6,2277.8,7.441]
[1750591898565,0.84096038,2278.6,2277.6,0.44202335]
[1750591898863,0.84096038,2278.6,2277.8,7.44]
[1750591899374,0.84096038,2278.6,2277.9,0.51796562]
[1750591899550,0.7971,2279.0,2278.2,0.55]
[1750591899752,0.7971,2280.0,2278.6,0.55]
[1750591899966,0.7971,2279.8,2278.7,0.56183819]
[1750591900166,0.84096038,2279.7,2278.9,10.0]
[1750591900371,0.84096038,2279.7,2279.0,0.56183681]
[1750591901782,0.84096038,2279.7,2279.0,0.99190045]
[1750591903392,0.84096038,2279.7,2279.0,0.94802926]
[1750591905099,0.84096038,2279.7,2279.1,0.04387177]
[1750591905998,0.84096038,2279.7,2279.0,0.94802926]
[1750591909304,0.84096038,2279.7,2278.7,10.0]
[1750591910600,0.84096038,2279.7,2278.6,2.016]
[1750591910799,0.84096038,2279.7,2278.7,10.0]
[1750591911770,0.84096038,2279.7,2278.7,10.4450993]
[1750591912502,0.84096038,2279.7,2278.8,0.04387746]
[1750591914201,0.8177,2279.6,2278.7,10.4450993]
[1750591914501,0.8177,2279.4,2278.8,0.04387745]
[1750591914698,0.8177,2279.2,2278.8,0.04387745]
[1750591914998,0.8177,2279.2,2278.7,10.0]
[1750591917372,25.8177,2279.2,2278.7,10.0]
[1750591917995,25.8177,2279.2,2278.7,10.44333333]
[1750591918574,25.8177,2279.2,2278.8,0.04388009]
[1750591921207,25.8177,2279.2,2278.7,10.44333333]
[1750591922417,25.0,2279.2,2278.7,10.44333333]
[1750591923422,25.0,2279.2,2278.7,0.44333333]
[1750591923602,0.7522,2279.1,2278.9,10.0]
[1750591923924,25.0,2279.2,2278.9,10.0]
[1750591925610,25.0,2279.2,2278.9,7.426]
[1750591926325,0.7596,2279.1,2278.9,7.426]
[1750591926820,25.0,2279.2,2278.7,0.44677864]
[1750591926821,0.04386038,2279.0,2278.7,0.44677864]
[1750591926989,0.04386038,2279.0,2278.6,0.44353317]
[1750591926990,0.7596,2278.9,2278.6,0.44353317]
[1750591927186,0.7596,2278.9,2278.4,0.04389111]
[1750591927390,0.7596,2278.9,2278.4,0.54682881]
[1750591927787,0.7596,2278.7,2278.2,7.424]
[1750591927991,0.7596,2278.7,2278.4,10.0]
[1750591928192,0.7596,2278.7,2278.4,10.44647164]
[1750591929424,0.7596,2278.7,2278.4,0.44647164]
[1750591929625,0.7596,2278.5,2277.6,7.423]
[1750591929826,0.7596,2278.3,2277.6,7.424]
[1750591929997,0.7596,2278.3,2277.7,10.04389366]
[1750591930199,0.7596,2278.3,2277.7,10.0]
[1750591930398,0.7596,2278.3,2277.8,0.04389231]
[1750591930922,0.7596,2278.3,2277.5,0.7882]
[1750591931128,0.7596,2278.3,2277.7,10.0]
[1750591931305,0.7596,2278.3,2277.8,0.0438973]
[1750591932094,0.7596,2278.3,2277.8,0.47499379]
[1750591932290,0.7596,2278.3,2277.8,0.0438973]
[1750591932733,0.7596,2278.3,2277.7,10.0]
[1750591933649,0.7596,2278.3,2277.8,0.04389242]
[1750591934437,0.7596,2278.3,2277.7,10.0]
[1750591934636,0.7596,2278.3,2277.8,0.0438924]
[1750591934815,0.7596,2278.3,2277.8,0.48569064]
[1750591935133,0.8009,2278.7,2278.0,0.55]
[1750591935339,0.8009,2278.7,2278.2,0.55]
[1750591935514,0.8009,2278.7,2278.2,10.55]
[1750591935714,0.8009,2278.7,2278.3,7.423]
[1750591936233,0.04386038,2279.1,2278.3,7.423]
[1750591936234,0.7995,2279.0,2278.4,10.0]
[1750591936402,0.7995,2279.0,2278.5,0.04388311]
[1750591936603,0.7995,2279.0,2278.4,10.0]
[1750591938936,0.7995,2279.0,2278.5,7.421]
[1750591950257,25.7596,2279.2,2278.6,10.04388117]
[1750591950455,25.0,2279.2,2278.8,0.8053]
[1750591950624,25.0,2279.2,2279.1,0.7635]
[1750591950826,25.0,2279.2,2279.1,9.76835437]
[1750591951024,25.0,2279.2,2279.1,9.21777527]
[1750591952338,25.0,2279.2,2279.1,21.22577527]
[1750591953270,25.0,2279.2,2279.1,21.73248413]
[1750591954139,25.0,2279.2,2279.1,21.22577527]
[1750591954338,25.0,2279.2,2279.1,21.73248413]
[1750591954531,19.97793166,2279.2,2279.1,31.46590432]
[1750591955267,19.97793166,2279.2,2279.1,43.95754432]
[1750591955587,19.97793166,2279.2,2279.1,22.04190432]
[1750591955588,19.14463166,2279.2,2279.1,22.04190432]
[1750591955887,15.92883305,2279.2,2279.1,33.97941032]
[1750591956069,15.92883305,2279.2,2279.1,37.72895787]
[1750591956239,15.92883305,2279.2,2279.1,38.52146887]
[1750591956439,15.92883305,2279.2,2279.1,37.66581787]
[1750591957345,15.92883305,2279.2,2279.1,41.60931587]
[1750591957578,15.88497307,2279.2,2279.1,41.60931587]
[1750591957887,15.88497307,2279.2,2279.1,41.97559317]
[1750591958037,5.11820302,2279.2,2279.1,41.97559317]
[1750591958238,2.92662395,2279.2,2279.1,59.90935217]
[1750591958545,0.73504489,2279.2,2279.1,59.90935217]
[1750591958742,0.8183,2280.6,2279.2,10.55]
[1750591958960,0.8183,2280.6,2279.8,0.55]
[1750591959162,0.8183,2280.6,2279.9,7.409]
[1750591959351,0.8183,2280.6,2280.0,10.0]
[1750591960072,0.8183,2280.6,2280.1,0.02192641]
[1750591960263,0.8183,2280.6,2280.2,7.409]
[1750591960467,0.8183,2280.6,2280.3,12.02192641]
[1750591960651,0.8183,2280.6,2280.3,12.0]
[1750591961361,0.005,2281.1,2280.4,0.02191134]
[1750591961579,0.005,2281.1,2280.6,10.0]
[1750591961580,0.8011,2280.9,2280.6,10.0]
[1750591961978,0.005,2281.1,2280.7,3.72512191]
[1750591962173,0.005,2281.1,2280.8,19.408]
[1750591962383,0.005,2281.1,2280.8,22.1827057]
[1750591962699,0.005,2281.1,2280.9,11.74978118]
[1750591962868,0.8011,2281.0,2280.9,2.34178118]
[1750591963076,0.005,2281.1,2281.0,1.15003886]
[1750591965783,25.005,2281.1,2281.0,1.15003886]
[1750591965969,27.52784876,2281.1,2281.0,1.15003886]
[1750591966189,28.32444876,2281.1,2281.0,1.15003886]
[1750591968353,27.52784876,2281.1,2281.0,1.15003886]
[1750591968558,28.32444876,2281.1,2281.0,1.15003886]
[1750591970012,0.7966,2281.0,2279.7,0.8308]
[1750591970205,0.55,2280.8,2279.5,1.999]
[1750591970502,0.55,2280.8,2278.9,8.778]
[1750591970503,0.7966,2280.5,2279.1,7.403]
[1750591970659,0.7955,2280.3,2279.0,11.999]
[1750591970858,0.7955,2280.1,2279.1,7.403]
[1750591971072,0.7955,2279.9,2279.1,7.403]
[1750591971290,0.05483551,2279.8,2279.1,7.403]
[1750591971695,0.05483551,2279.8,2279.1,7.90970886]
[1750591972107,0.7955,2279.9,2279.2,0.5286795]
[1750591972878,0.7955,2279.9,2279.2,1.04795404]
[1750591973179,0.7955,2279.9,2279.4,0.8212]
[1750591973414,0.7955,2279.9,2279.5,1.999]
[1750591973588,0.7955,2280.2,2279.6,7.402]
[1750591973788,1.08043234,2280.2,2279.6,7.402]
[1750591976016,0.8611227,2280.1,2279.5,2.0]
[1750591976215,0.8611227,2280.1,2279.2,0.02196608]
[1750591976416,0.8611227,2280.1,2279.4,10.0]
[1750591977829,0.8611227,2280.1,2279.2,9.403]
[1750591979390,0.8611227,2280.1,2279.2,9.90970886]
[1750591979821,0.8611227,2280.1,2279.2,9.403]
[1750591980026,0.8611227,2280.1,2279.1,0.4388338]
[1750591980232,0.8611227,2280.1,2279.2,10.0]
[1750591981311,0.8611227,2280.1,2279.1,0.42896735]
[1750591981512,0.8611227,2280.1,2279.0,10.0]
[1750591982919,0.8063,2280.0,2279.0,10.0]
[1750591983122,0.8063,2279.8,2279.0,10.0]
[1750591983295,0.8063,2279.6,2279.0,10.0]
[1750591983627,0.05484149,2279.5,2279.0,10.0]
[1750591983824,0.8063,2279.4,2278.5,0.4006436]
[1750591984030,2.0,2279.8,2278.5,0.4006436]
[1750591984031,0.8063,2279.2,2278.6,2.0]
[1750591984198,0.8063,2279.2,2278.6,12.02200235]
[1750591984401,0.8063,2279.2,2278.6,12.0]
[1750591985419,0.8063,2279.2,2278.6,19.402]
[1750591985944,0.8063,2279.2,2278.7,0.02200227]
[1750591986346,0.8063,2279.2,2278.6,19.402]
[1750591986510,0.8063,2279.2,2278.7,0.02200224]
[1750591986845,0.8063,2279.2,2278.6,19.402]
[1750591987142,0.8063,2279.2,2278.7,0.02200223]
[1750591987440,0.8063,2279.2,2278.6,19.402]
[1750591987641,0.8063,2279.2,2278.6,9.402]
[1750591988446,0.8063,2279.2,2278.7,0.02200222]
[1750591989133,0.8063,2279.2,2278.7,10.02200222]
[1750591989312,0.8063,2279.2,2278.7,10.0]
[1750591989523,0.8063,2279.2,2278.8,0.02199397]
[1750591990047,0.8063,2279.2,2278.7,10.0]
[1750591991852,0.86074618,2279.1,2278.5,0.44201754]
[1750591992154,0.8059,2279.0,2278.6,0.02201035]
[1750591992326,0.8059,2279.0,2278.5,8.165]
[1750591992514,0.8059,2279.0,2278.5,9.396]
[1750591992730,0.8059,2279.0,2278.6,10.0]
[1750591994164,0.8059,2279.5,2278.6,10.0]
[1750591994364,0.05484156,2279.4,2278.6,10.0]
[1750591995068,0.8059,2279.3,2278.6,10.0]
[1750591996261,0.8059,2279.3,2278.7,0.02198706]
[1750591996460,0.8059,2279.3,2278.8,0.8109]
[1750591996634,0.8059,2279.3,2278.6,10.8109]
[1750591997256,0.8059,2279.3,2278.7,9.395]
[1750591998097,0.8059,2279.3,2278.8,10.0]
[1750591998395,0.8059,2279.3,2278.8,17.4]
[1750591998888,0.8059,2279.3,2278.7,7.399]
[1750591999093,0.8059,2279.3,2278.8,10.0]
[1750591999456,0.8059,2279.3,2278.7,7.399]
[1750591999457,0.8059,2279.3,2278.4,0.8109]
[1750591999686,0.8059,2279.3,2278.6,10.0]
[1750592000952,0.7712,2279.1,2278.6,7.399]
[1750592001265,0.7712,2279.1,2278.6,10.0]
[1750592001952,0.7712,2279.1,2278.2,0.821]
[1750592002268,0.7712,2278.9,2278.3,7.399]
[1750592002681,0.7712,2278.9,2278.4,0.02201254]
[1750592003063,0.7712,2278.9,2278.4,11.39300482]
[1750592003272,0.7712,2279.5,2278.4,11.371]
[1750592003590,0.7712,2279.5,2278.4,12.289364]
[1750592004288,0.7712,2279.5,2278.5,0.02197977]
[1750592004454,0.7712,2279.5,2278.7,0.55]
[1750592004656,0.7712,2279.5,2278.9,1.371]
[1750592007495,0.8034,2279.8,2279.0,0.02196806]
[1750592007796,0.8034,2279.8,2278.9,1.371]
[1750592009461,0.8034,2280.0,2279.3,0.55]
[1750592009677,0.8034,2280.2,2279.5,10.55]
[1750592009875,0.8034,2280.2,2279.5,10.98486841]
[1750592010290,0.8034,2280.2,2279.5,10.43486841]
[1750592010507,0.8034,2280.0,2279.5,10.43486841]
[1750592011267,0.8034,2280.0,2279.6,0.02194893]
[1750592011475,0.8034,2280.0,2279.5,9.82486841]
[1750592014422,0.85822066,2280.0,2279.5,0.43486841]
[1750592014571,0.8034,2280.0,2279.5,0.43486841]
[1750592014776,3.38374,2280.0,2279.4,11.995]
[1750592015195,2.58034,2280.0,2279.4,11.995]
[1750592015514,0.8051,2279.9,2279.4,11.995]
[1750592016776,0.8051,2279.9,2279.4,1.995]
[1750592017188,0.7611,2279.7,2279.4,2.42732389]
[1750592021080,0.7611,2279.7,2279.4,2.449292]
[1750592021280,0.7611,2279.7,2279.4,2.42732389]
[1750592028938,0.05483318,2279.6,2278.9,11.989]
[1750592029133,2.58034,2280.0,2278.9,11.989]
[1750592029134,0.7576,2279.5,2278.9,11.989]
[1750592031138,0.7576,2279.5,2278.9,12.42058115]
[1750592031344,0.7576,2279.5,2278.9,2.42058115]
[1750592031516,0.7576,2279.5,2278.9,12.42058115]
[1750592031717,0.7576,2279.5,2278.9,2.42058115]
[1750592032121,0.7576,2279.3,2278.9,2.42058115]
[1750592032509,0.7576,2279.3,2279.0,0.0219876]
[1750592034043,0.7576,2279.3,2278.9,2.42058115]
[1750592035055,0.7576,2279.3,2278.9,0.43158115]
[1750592035247,0.7576,2279.3,2278.6,10.0]
[1750592035554,0.7576,2279.3,2278.5,11.989]
[1750592036416,0.81964861,2279.2,2278.5,1.989]
[1750592036853,0.81964861,2279.2,2278.5,11.989]
[1750592037567,0.7648,2279.2,2278.6,2.31521757]
[1750592037714,0.7648,2279.2,2278.6,2.31041285]
[1750592040660,0.7648,2279.2,2278.7,0.02198102]
[1750592040968,0.7648,2279.2,2278.7,0.7991]
[1750592041263,0.7648,2279.2,2278.7,0.55]
[1750592043259,0.7648,2279.2,2278.6,10.43093831]
[1750592043556,0.7648,2279.2,2278.7,0.02199888]
[1750592044556,0.7648,2279.2,2278.6,10.43093831]
[1750592044725,0.7648,2279.2,2278.7,0.02199889]
[1750592046730,0.7648,2279.2,2278.7,0.02198562]
[1750592047251,0.7648,2279.2,2278.7,0.77728562]
[1750592048064,0.7648,2279.2,2278.7,0.02198562]
[1750592048562,0.7972,2279.5,2278.7,0.57198562]
[1750592048758,24.999,2279.2,2278.7,1.50021285]
[1750592048974,24.999,2279.2,2278.9,0.55]
[1750592049177,24.999,2279.2,2279.0,7.383]
[1750592049471,24.999,2279.2,2279.1,10.0]
[1750592051396,25.8149,2279.2,2279.1,10.0]
[1750592052251,24.999,2279.2,2279.1,10.0]
[1750592052757,0.8159,2279.1,2279.0,7.383]
[1750592052958,0.8159,2279.1,2278.7,7.382]
[1750592053158,0.8159,2279.1,2278.8,10.0]
[1750592054502,2.8408832,2279.1,2278.8,10.0]
[1750592055007,0.8159,2279.0,2278.7,7.381]
[1750592055792,0.8159,2279.0,2278.9,10.0]
[1750592055991,25.7572,2279.2,2278.9,10.0]
[1750592056195,25.7572,2279.2,2278.9,12.86394814]
[1750592056486,25.7572,2279.2,2279.0,2.88494697]
[1750592056876,28.33292,2279.2,2279.0,2.88494697]
[1750592058206,0.7582,2279.1,2279.0,2.88494697]
[1750592059908,24.999,2279.2,2279.0,2.88494697]
[1750592062896,24.999,2279.2,2279.1,10.0219863]
[1750592063103,24.999,2279.2,2279.1,10.777]
[1750592063302,24.999,2279.2,2279.1,18.155]
[1750592064012,24.999,2279.2,2279.1,17.378]
[1750592065010,25.8241,2279.2,2279.1,10.0]
[1750592065191,28.40651,2279.2,2279.0,2.88494697]
[1750592067405,25.8241,2279.2,2279.0,2.88494697]
[1750592068119,0.7736,2279.1,2279.0,2.88494697]
[1750592069118,0.7736,2279.0,2278.5,10.44833452]
[1750592069322,0.7736,2279.0,2278.5,10.0]
[1750592069822,0.7736,2279.0,2278.5,7.376]
[1750592071914,0.7736,2278.9,2278.5,7.376]
[1750592072114,0.7736,2278.9,2278.5,7.80674561]
[1750592072327,0.82845082,2278.9,2278.5,10.43074561]
[1750592073118,0.7963,2278.8,2277.9,0.8255]
[1750592073317,0.7963,2278.6,2277.9,0.4495614]
[1750592073523,0.7963,2278.4,2277.2,0.20907811]
[1750592073725,0.7963,2278.2,2278.0,1.318748]
[1750592073919,0.85117637,2278.1,2277.4,10.0]
[1750592074165,0.85117637,2278.1,2277.5,0.02205566]
[1750592074462,1.67379401,2278.1,2277.5,0.46898548]
[1750592074628,1.67379401,2278.1,2277.5,0.02205566]
[1750592075339,0.7963,2278.9,2277.7,0.7985]
[1750592075568,0.7963,2278.9,2277.9,0.7985]
[1750592075723,0.05485626,2278.8,2277.9,0.7985]
[1750592075920,0.8215,2279.0,2277.9,12.7825]
[1750592076148,0.8215,2278.8,2278.0,10.0]
[1750592076349,0.8215,2278.8,2278.0,11.984]
[1750592076350,0.8215,2278.6,2278.0,11.984]
[1750592077356,0.8215,2278.6,2278.0,12.41965415]
[1750592077525,0.8215,2278.6,2278.0,12.19090917]
[1750592077921,0.8215,2278.6,2278.1,0.02202192]
[1750592078226,0.8215,2278.6,2278.0,12.19090917]
[1750592078746,0.8215,2278.4,2278.0,10.43565415]
[1750592079060,0.8215,2278.2,2278.0,0.43565415]
[1750592079350,0.8215,2278.2,2277.6,1.984]
[1750592079532,0.8215,2278.2,2277.6,11.984]
[1750592079739,0.8215,2278.2,2277.7,0.02204615]
[1750592081759,0.8215,2278.2,2277.6,11.984]
[1750592082067,0.8215,2278.2,2277.7,0.02204608]
[1750592083637,0.8215,2278.2,2277.6,12.42709962]
[1750592084364,0.8215,2278.2,2277.6,2.42709962]
[1750592084754,0.8215,2278.2,2277.6,12.42709962]
[1750592090276,0.8215,2278.2,2277.7,0.02204615]
[1750592090480,0.05487224,2278.1,2277.6,0.44309962]
[1750592090650,0.05487224,2278.1,2277.2,1.32566327]
[1750592090651,0.88537224,2278.1,2277.5,0.02205377]
[1750592090856,0.88537224,2278.1,2277.3,0.02205377]
[1750592091078,0.88537224,2278.1,2277.3,0.44017345]
[1750592091278,0.88537224,2278.1,2277.2,18.69866327]
[1750592091655,0.88537224,2278.1,2277.2,10.51156327]
[1750592091858,0.88537224,2278.1,2277.4,10.0]
[1750592092366,0.88537224,2278.1,2276.8,10.1257]
[1750592092367,0.8114,2277.9,2276.8,10.1257]
[1750592092569,0.8114,2277.7,2276.8,9.35]
[1750592092776,0.8114,2277.5,2276.7,10.51156327]
[1750592092958,0.86629061,2277.4,2276.6,10.0]
[1750592093489,0.86629061,2277.4,2276.6,7.372]
[1750592093682,0.86629061,2277.4,2276.7,10.0]
[1750592093877,0.86629061,2277.4,2276.6,17.373]
[1750592095586,0.86629061,2277.4,2276.6,0.43973455]
[1750592095787,0.86629061,2277.4,2276.5,0.51156327]
[1750592095955,0.86629061,2277.4,2276.1,3.7316113]
[1750592096155,0.86629061,2277.4,2276.2,10.02210861]
[1750592096456,0.827,2277.3,2276.2,3.15356031]
[1750592096678,0.827,2277.1,2276.3,7.372]
[1750592096986,0.05489917,2277.0,2276.4,10.0]
[1750592097150,0.827,2277.1,2276.4,10.0]
[1750592097350,0.827,2277.1,2276.4,17.373]
[1750592097784,0.827,2277.1,2276.5,0.0220999]
[1750592098005,0.827,2277.1,2276.4,17.88456327]
[1750592098595,0.827,2277.1,2276.5,0.02209265]
[1750592099117,0.827,2277.1,2276.5,0.77389265]
[1750592099305,0.827,2277.6,2276.6,0.55]
[1750592099610,0.28608956,2277.5,2276.6,1.06156327]
[1750592099902,0.827,2277.6,2276.6,1.06156327]
[1750592100270,0.827,2277.4,2276.7,9.351]
[1750592100476,0.827,2277.4,2276.8,10.0]
[1750592100992,0.05489191,2277.3,2276.8,10.0]
[1750592101198,0.8136,2277.2,2276.3,0.7518]
[1750592101374,0.8136,2277.0,2276.3,1.979]
[1750592101708,0.86850232,2276.9,2276.3,1.979]
[1750592103897,0.86850232,2276.9,2276.2,10.44975194]
[1750592104093,0.86850232,2276.9,2276.2,17.82175194]
[1750592104637,0.86850232,2276.9,2276.2,0.44975194]
[1750592104983,0.86850232,2276.9,2276.1,2.9559113]
[1750592106988,0.7575,2276.7,2276.1,2.9559113]
[1750592107187,0.7575,2276.5,2276.1,2.9559113]
[1750592107523,0.7575,2276.3,2276.1,2.9559113]
[1750592108138,0.7575,2276.3,2276.1,2.9059113]
[1750592108341,0.05491855,2276.2,2276.1,2.9059113]
[1750592108637,0.7575,2276.2,2276.1,2.9059113]
[1750592108803,0.7575,2276.2,2275.4,1.98]
[1750592109132,0.7575,2276.0,2275.2,1.98]
[1750592109446,0.05493007,2275.9,2275.2,1.98]
[1750592109619,0.7575,2275.8,2275.2,1.98]
[1750592110298,0.7575,2275.8,2275.2,1.93]
[1750592111550,0.7575,2275.8,2275.2,1.88]
[1750592112654,0.7575,2275.8,2275.2,1.83]
[1750592112856,0.7575,2275.8,2275.3,0.02215299]
[1750592113019,0.7575,2275.8,2275.2,1.83]
[1750592113216,0.7575,2275.8,2275.0,0.55]
[1750592113456,0.7575,2275.8,2275.1,0.02215817]
[1750592113639,0.7575,2275.8,2275.2,10.0]
[1750592113843,0.7575,2275.8,2275.3,1.9971583]
[1750592114163,0.7575,2275.8,2275.3,1.975]
[1750592114363,0.7575,2275.8,2275.1,7.372]
[1750592114564,0.7575,2275.8,2275.0,0.99906327]
[1750592114750,0.7575,2275.8,2275.1,1.975]
[1750592114956,0.7575,2275.8,2275.0,0.55]
[1750592115318,0.7575,2275.8,2274.9,0.807]
[1750592115319,0.05493005,2275.7,2274.9,0.807]
[1750592115520,0.8144,2275.6,2274.8,0.65598197]
[1750592115729,0.8144,2275.6,2274.8,10.0]
[1750592115951,0.8144,2275.6,2274.9,1.975]
[1750592116165,0.8144,2275.6,2274.7,1.23426327]
[1750592116316,0.8144,2275.6,2274.8,0.55]
[1750592116522,0.8144,2275.6,2275.0,0.55]
[1750592116738,0.8144,2275.6,2275.1,0.02216223]
[1750592116939,0.8144,2275.6,2275.0,0.55]
[1750592118063,0.8144,2275.6,2274.8,10.43698726]
[1750592118266,0.8144,2275.6,2274.9,1.975]
[1750592119780,0.40813246,2275.5,2274.9,1.975]
[1750592119943,0.7556,2275.4,2274.8,0.43698726]
[1750592120154,0.7556,2275.4,2274.9,1.975]
[1750592120763,0.7556,2275.4,2274.8,1.975]
[1750592122676,0.40863983,2275.3,2274.8,1.975]
[1750592122876,0.7556,2275.4,2274.8,1.975]
[1750592123078,0.40864217,2275.3,2274.8,1.975]
[1750592123385,0.7556,2275.4,2274.8,2.41528528]
[1750592123682,0.7556,2275.4,2274.8,1.975]
[1750592124350,0.40844762,2275.3,2274.8,1.976]
[1750592124683,0.8208,2275.2,2274.8,1.976]
[1750592124883,0.8208,2275.2,2274.9,0.02218358]
[1750592125193,0.8208,2275.2,2274.8,1.976]
[1750592125763,0.8208,2275.2,2274.7,0.55]
[1750592125962,0.8208,2275.2,2274.7,11.976]
[1750592127674,0.8208,2275.2,2274.7,1.976]
[1750592127874,0.8208,2275.2,2274.8,0.02218218]
[1750592128387,0.8208,2275.2,2274.7,1.976]
[1750592128580,0.8208,2275.2,2274.7,2.41170351]
[1750592131476,0.8208,2275.2,2274.7,0.43570351]
[1750592131677,0.8208,2275.2,2274.7,10.0]
[1750592132075,0.8208,2275.2,2274.6,2.526]
[1750592132405,0.8208,2275.2,2274.7,10.0]
[1750592134283,0.8208,2275.2,2274.6,0.98095757]
[1750592134503,0.40977853,2275.1,2274.6,0.43095757]
[1750592134710,1.21207853,2275.0,2274.4,10.0]
[1750592134912,0.8023,2275.0,2274.2,0.8037]
[1750592135227,0.8023,2274.8,2274.0,2.64266667]
[1750592135389,0.8023,2274.6,2274.0,2.64266667]
[1750592135594,0.46549576,2274.5,2274.0,0.66666667]
[1750592135782,1.21284023,2274.4,2274.0,0.66666667]
[1750592135981,0.41054023,2274.3,2274.0,0.66666667]
[1750592136216,0.4105819,2274.2,2274.0,0.66666667]
[1750592136750,1.2128819,2274.2,2274.0,0.66666667]
[1750592136877,1.21289422,2274.2,2274.0,0.66666667]
[1750592137279,0.8023,2274.2,2274.1,1.10556939]
[1750592137514,1.21200091,2274.2,2274.1,1.10556939]
[1750592137686,0.8023,2274.2,2274.1,1.10556939]
[1750592138009,1.21201012,2274.2,2274.1,1.10556939]
[1750592139032,1.21201012,2274.2,2274.1,0.6667]
[1750592139315,1.21229276,2274.2,2274.1,0.6667]
[1750592139692,1.21230646,2274.2,2274.1,0.6667]
[1750592140101,1.21148789,2274.2,2274.1,0.6667]
[1750592140718,1.21148789,2274.2,2273.3,2.17498777]
[1750592140719,0.8247,2274.1,2273.3,2.17498777]
[1750592140884,0.46416753,2274.0,2273.3,1.7259245]
[1750592141083,0.8247,2273.8,2273.3,1.7259245]
[1750592142609,0.8247,2273.8,2273.3,2.16208717]
[1750592143190,0.40869559,2273.7,2273.3,2.16208717]
[1750592143393,0.87967831,2273.8,2273.3,2.16208717]
[1750592143723,0.40872199,2273.7,2273.3,2.16208717]
[1750592143893,0.8247,2273.5,2273.3,2.16208717]
[1750592144093,0.8247,2273.5,2273.3,0.43616267]
[1750592144292,0.8247,2273.5,2272.9,11.977]
[1750592146007,0.8048,2274.0,2273.0,0.02226263]
[1750592146214,0.46377847,2273.9,2273.0,0.02226263]
[1750592146401,0.8048,2273.7,2273.0,0.02226263]
[1750592147414,0.8048,2273.7,2273.0,0.55]
[1750592147620,0.8048,2273.7,2273.2,0.55]
[1750592149318,0.8048,2274.1,2273.2,0.55]
[1750592149512,0.46312645,2274.0,2273.2,0.55]
[1750592149719,0.05497391,2274.0,2273.2,0.55]
[1750592149918,0.3380513,2274.0,2273.2,0.55]
[1750592150097,0.05497391,2274.0,2273.2,0.55]
[1750592150831,25.05497391,2274.0,2273.2,0.55]
[1750592151129,25.0,2274.0,2273.2,0.55]
[1750592151527,1.17169468,2273.9,2273.1,0.8275]
[1750592151707,25.0,2274.0,2273.0,1.321624]
[1750592151708,0.7635,2273.7,2273.0,0.55]
[1750592152703,0.7635,2273.7,2273.1,0.02225587]
[1750592153427,0.7635,2273.7,2273.0,0.55]
[1750592154934,0.7635,2273.7,2273.1,1.972]
[1750592155632,0.7635,2273.7,2273.2,10.55]
[1750592156432,0.7635,2273.7,2273.3,0.02225047]
[1750592157037,0.7635,2273.7,2273.2,10.55]
[1750592159206,0.7635,2273.7,2273.2,10.0]
[1750592162250,0.05498083,2273.6,2272.8,1.321781]
[1750592162416,0.7942,2273.5,2272.9,1.972]
[1750592162616,0.7942,2273.3,2272.9,11.972]
[1750592162817,0.7942,2273.3,2272.9,1.972]
[1750592163341,0.7942,2273.3,2273.0,0.02228264]
[1750592163647,0.7942,2273.3,2272.9,1.972]
[1750592163847,25.0,2274.0,2273.0,0.57226819]
[1750592164005,25.0,2274.0,2273.3,0.779]
[1750592164206,25.0,2274.0,2273.7,0.55]
[1750592164505,25.0,2274.0,2273.9,1.329]
[1750592164717,25.0,2274.0,2273.9,10.665]
[1750592166234,25.0,2274.0,2273.9,3.301]
[1750592166547,25.0,2274.0,2273.9,13.301]
[1750592166844,25.0,2274.0,2273.9,12.522]